[Event "Late-Titled-Tuesday-Blitz-June-25-2024"]
[Site "Chess.com"]
[Date "2024.06.25"]
[Round "1"]
[White "Jagerrmeisterr"]
[Black "szefru"]
[Result "1-0"]
[WhiteElo "2655"]
[BlackElo "2373"]
[TimeControl "180+1"]
[EndTime "14:07:35 PDT"]
[Termination "Jagerrmeisterr won on time"]

1. e4 {[%clk 0:02:58.6]} 1... e5 {[%clk 0:03:00]} 2. Nc3 {[%clk 0:02:56.4]} 2...
Nc6 {[%clk 0:03:00.1]} 3. g3 {[%clk 0:02:55.4]} 3... Nf6 {[%clk 0:02:59.6]} 4.
Bg2 {[%clk 0:02:55.8]} 4... Bc5 {[%clk 0:02:59.9]} 5. d3 {[%clk 0:02:53.2]} 5...
O-O {[%clk 0:02:58.1]} 6. h3 {[%clk 0:02:50.5]} 6... d6 {[%clk 0:02:54.8]} 7.
Nge2 {[%clk 0:02:50.2]} 7... Be6 {[%clk 0:02:49.6]} 8. Na4 {[%clk 0:02:45.1]}
8... Bb6 {[%clk 0:02:42.1]} 9. Nxb6 {[%clk 0:02:40.6]} 9... axb6 {[%clk
0:02:43]} 10. c4 {[%clk 0:02:41.3]} 10... Qd7 {[%clk 0:02:42.1]} 11. g4 {[%clk
0:02:36.7]} 11... b5 {[%clk 0:02:27.1]} 12. cxb5 {[%clk 0:02:03.7]} 12... Na5
{[%clk 0:02:19]} 13. Bg5 {[%clk 0:01:48.1]} 13... Ne8 {[%clk 0:02:15.9]} 14. Nc3
{[%clk 0:01:46.9]} 14... c6 {[%clk 0:01:55.2]} 15. bxc6 {[%clk 0:01:42.5]} 15...
bxc6 {[%clk 0:01:56.1]} 16. b4 {[%clk 0:01:33.4]} 16... Nb7 {[%clk 0:01:53.7]}
17. a4 {[%clk 0:01:32.5]} 17... d5 {[%clk 0:01:46.9]} 18. O-O {[%clk 0:01:23.6]}
18... d4 {[%clk 0:01:37.8]} 19. Ne2 {[%clk 0:01:18.7]} 19... c5 {[%clk
0:01:37.7]} 20. Bd2 {[%clk 0:01:01.8]} 20... Nc7 {[%clk 0:01:28.8]} 21. f4
{[%clk 0:01:00.3]} 21... f6 {[%clk 0:01:27.3]} 22. Ng3 {[%clk 0:00:52.3]} 22...
Na6 {[%clk 0:01:08.7]} 23. b5 {[%clk 0:00:51.4]} 23... Nc7 {[%clk 0:01:08.7]}
24. f5 {[%clk 0:00:42.2]} 24... Bf7 {[%clk 0:01:08.3]} 25. g5 {[%clk 0:00:42.9]}
25... Kh8 {[%clk 0:01:05]} 26. Qg4 {[%clk 0:00:41.2]} 26... Na5 {[%clk
0:00:59.1]} 27. Qh4 {[%clk 0:00:36.4]} 27... Nb3 {[%clk 0:00:55]} 28. gxf6
{[%clk 0:00:34.5]} 28... Nxd2 {[%clk 0:00:41.6]} 29. fxg7+ {[%clk 0:00:34.7]}
29... Kxg7 {[%clk 0:00:40.9]} 30. Qg5+ {[%clk 0:00:34.9]} 30... Kh8 {[%clk
0:00:39.8]} 31. Qxd2 {[%clk 0:00:35.8]} 31... Rg8 {[%clk 0:00:29.6]} 32. Kh2
{[%clk 0:00:35.8]} 32... Qd8 {[%clk 0:00:19.1]} 33. Qh6 {[%clk 0:00:33.1]} 33...
Qe7 {[%clk 0:00:16.9]} 34. b6 {[%clk 0:00:27]} 34... Ne8 {[%clk 0:00:15.7]} 35.
f6 {[%clk 0:00:24.3]} 35... Qb7 {[%clk 0:00:13.6]} 36. a5 {[%clk 0:00:24.5]}
36... Ra6 {[%clk 0:00:13.1]} 37. Bf3 {[%clk 0:00:19.6]} 37... Nd6 {[%clk
0:00:12.5]} 38. Bh5 {[%clk 0:00:19.2]} 38... c4 {[%clk 0:00:09.3]} 39. dxc4
{[%clk 0:00:18]} 39... Nxc4 {[%clk 0:00:09.1]} 40. Nf5 {[%clk 0:00:15]} 40...
Rxa5 {[%clk 0:00:03.4]} 41. Rxa5 {[%clk 0:00:14]} 41... Nxa5 {[%clk 0:00:03]}
42. Rg1 {[%clk 0:00:13.5]} 42... Qc8 {[%clk 0:00:01.2]} 43. Bxf7 {[%clk
0:00:12.6]} 1-0

[Event "Late-Titled-Tuesday-Blitz-June-25-2024"]
[Site "Chess.com"]
[Date "2024.06.25"]
[Round "1"]
[White "rasmussvane"]
[Black "esskeettit"]
[Result "1-0"]
[WhiteElo "2976"]
[BlackElo "2506"]
[TimeControl "180+1"]
[EndTime "14:07:38 PDT"]
[Termination "rasmussvane won by resignation"]

1. Nf3 {[%clk 0:02:59.6]} 1... d5 {[%clk 0:02:59.8]} 2. g3 {[%clk 0:02:57.2]}
2... Nf6 {[%clk 0:03:00.3]} 3. Bg2 {[%clk 0:02:57.1]} 3... c6 {[%clk 0:02:59.8]}
4. O-O {[%clk 0:02:57.1]} 4... Bf5 {[%clk 0:03:00.1]} 5. c4 {[%clk 0:02:56.8]}
5... h6 {[%clk 0:02:57.7]} 6. Qb3 {[%clk 0:02:56.6]} 6... Qb6 {[%clk 0:02:41.1]}
7. d3 {[%clk 0:02:56.6]} 7... e6 {[%clk 0:02:40.6]} 8. cxd5 {[%clk 0:02:55.6]}
8... exd5 {[%clk 0:02:33.7]} 9. Qc2 {[%clk 0:02:53.9]} 9... Be7 {[%clk
0:02:32.7]} 10. Nc3 {[%clk 0:02:54]} 10... O-O {[%clk 0:02:32.9]} 11. e4 {[%clk
0:02:54.2]} 11... dxe4 {[%clk 0:02:29.8]} 12. dxe4 {[%clk 0:02:54.5]} 12... Bh7
{[%clk 0:02:30.4]} 13. Be3 {[%clk 0:02:54.8]} 13... Qa5 {[%clk 0:02:29.5]} 14.
a3 {[%clk 0:02:54.2]} 14... Nbd7 {[%clk 0:02:27.6]} 15. Rad1 {[%clk 0:02:52.5]}
15... Rad8 {[%clk 0:02:23.8]} 16. h3 {[%clk 0:02:50.8]} 16... a6 {[%clk
0:02:23.8]} 17. Nd4 {[%clk 0:02:43.2]} 17... Rfe8 {[%clk 0:01:59.6]} 18. Rfe1
{[%clk 0:02:41.8]} 18... Qc7 {[%clk 0:01:52.7]} 19. f4 {[%clk 0:02:34.4]} 19...
Bf8 {[%clk 0:01:33]} 20. Bf2 {[%clk 0:02:32.3]} 20... c5 {[%clk 0:01:16.1]} 21.
Nf5 {[%clk 0:02:03.3]} 21... c4 {[%clk 0:01:02.5]} 22. e5 {[%clk 0:01:54.3]}
22... Bxf5 {[%clk 0:00:18]} 23. Qxf5 {[%clk 0:01:53.2]} 23... Nh7 {[%clk
0:00:18.3]} 24. Bd5 {[%clk 0:01:40.8]} 24... Nc5 {[%clk 0:00:16.6]} 25. Bxc4
{[%clk 0:01:30.5]} 25... Ne6 {[%clk 0:00:16.8]} 26. Rxd8 {[%clk 0:01:18.1]}
26... Qxd8 {[%clk 0:00:15.7]} 27. Bxe6 {[%clk 0:00:43.7]} 27... fxe6 {[%clk
0:00:16.6]} 28. Qe4 {[%clk 0:00:43.2]} 28... Qc7 {[%clk 0:00:16.2]} 29. Rd1
{[%clk 0:00:41.2]} 29... Bc5 {[%clk 0:00:16.5]} 30. Bxc5 {[%clk 0:00:37.5]}
30... Qxc5+ {[%clk 0:00:17.4]} 31. Kg2 {[%clk 0:00:37.8]} 31... Nf8 {[%clk
0:00:18]} 32. Qxb7 {[%clk 0:00:33.8]} 32... a5 {[%clk 0:00:15.1]} 33. Rd6 {[%clk
0:00:27.2]} 33... Qe3 {[%clk 0:00:14.8]} 34. Qf3 {[%clk 0:00:24.7]} 34... Qc1
{[%clk 0:00:14.4]} 35. Qe2 {[%clk 0:00:24.5]} 35... Rb8 {[%clk 0:00:13.6]} 36.
Rd2 {[%clk 0:00:19.1]} 36... a4 {[%clk 0:00:10.4]} 37. Qd1 {[%clk 0:00:18.9]}
37... Qxd1 {[%clk 0:00:09.5]} 38. Nxd1 {[%clk 0:00:19.8]} 38... Kf7 {[%clk
0:00:09]} 39. Nc3 {[%clk 0:00:20.1]} 39... Ra8 {[%clk 0:00:08.5]} 40. Rd4 {[%clk
0:00:20.2]} 40... Ke7 {[%clk 0:00:06.6]} 41. Nxa4 {[%clk 0:00:20.1]} 41... Rb8
{[%clk 0:00:07.1]} 42. Kf3 {[%clk 0:00:18.8]} 42... Nd7 {[%clk 0:00:06.9]} 43.
b4 {[%clk 0:00:15.6]} 43... g6 {[%clk 0:00:07.3]} 44. Rc4 {[%clk 0:00:14.1]}
44... Ra8 {[%clk 0:00:07.6]} 45. b5 {[%clk 0:00:13.1]} 45... Kd8 {[%clk
0:00:05.7]} 46. Rd4 {[%clk 0:00:11.9]} 46... Rb8 {[%clk 0:00:06.1]} 47. Nc5
{[%clk 0:00:11.6]} 1-0

[Event "Late-Titled-Tuesday-Blitz-June-25-2024"]
[Site "Chess.com"]
[Date "2024.06.25"]
[Round "1"]
[White "Tonychess32"]
[Black "OIAM03"]
[Result "1-0"]
[WhiteElo "2541"]
[BlackElo "1974"]
[TimeControl "180+1"]
[EndTime "14:07:38 PDT"]
[Termination "Tonychess32 won on time"]

1. e4 {[%clk 0:02:58.6]} 1... c5 {[%clk 0:02:59]} 2. Nf3 {[%clk 0:02:58.6]} 2...
d6 {[%clk 0:02:59]} 3. c3 {[%clk 0:02:58.7]} 3... Nf6 {[%clk 0:02:57.6]} 4. Bd3
{[%clk 0:02:58.7]} 4... g6 {[%clk 0:02:55.8]} 5. Bc2 {[%clk 0:02:58.9]} 5... Bg7
{[%clk 0:02:55.1]} 6. O-O {[%clk 0:02:59.3]} 6... O-O {[%clk 0:02:55]} 7. Re1
{[%clk 0:02:59.4]} 7... Nc6 {[%clk 0:02:54.5]} 8. h3 {[%clk 0:02:59.7]} 8... e5
{[%clk 0:02:52.1]} 9. d3 {[%clk 0:02:57.8]} 9... Be6 {[%clk 0:02:51.8]} 10. Nbd2
{[%clk 0:02:56.8]} 10... d5 {[%clk 0:02:51.5]} 11. Qe2 {[%clk 0:02:50.9]} 11...
Qc7 {[%clk 0:02:45.3]} 12. Nf1 {[%clk 0:02:47.1]} 12... d4 {[%clk 0:02:23.8]}
13. c4 {[%clk 0:02:23.9]} 13... a6 {[%clk 0:02:02.2]} 14. Ng3 {[%clk 0:02:16.2]}
14... b5 {[%clk 0:01:58.3]} 15. b3 {[%clk 0:02:12.3]} 15... Nd7 {[%clk
0:01:43.2]} 16. Ng5 {[%clk 0:02:06.9]} 16... Nb6 {[%clk 0:01:36.8]} 17. Nxe6
{[%clk 0:02:04.2]} 17... fxe6 {[%clk 0:01:36.6]} 18. Qg4 {[%clk 0:01:59]} 18...
Qf7 {[%clk 0:01:33.9]} 19. Qe2 {[%clk 0:01:49.6]} 19... Nb4 {[%clk 0:01:32.1]}
20. a3 {[%clk 0:01:46.7]} 20... Nxc2 {[%clk 0:01:28.2]} 21. Qxc2 {[%clk
0:01:47.6]} 21... bxc4 {[%clk 0:01:27.8]} 22. bxc4 {[%clk 0:01:47.2]} 22... Rab8
{[%clk 0:01:22.3]} 23. Rb1 {[%clk 0:01:41.9]} 23... Nd7 {[%clk 0:01:14.6]} 24.
Rxb8 {[%clk 0:01:39.1]} 24... Nxb8 {[%clk 0:01:12.8]} 25. Rf1 {[%clk 0:01:30.9]}
25... Nc6 {[%clk 0:01:12]} 26. Bd2 {[%clk 0:01:28.4]} 26... Qb7 {[%clk
0:01:10.5]} 27. Rb1 {[%clk 0:01:23.4]} 27... Qf7 {[%clk 0:01:10.6]} 28. Be1
{[%clk 0:01:17.2]} 28... Bh6 {[%clk 0:01:08.8]} 29. Nf1 {[%clk 0:01:15.6]} 29...
Qf4 {[%clk 0:00:55.7]} 30. Nh2 {[%clk 0:01:09.9]} 30... Bg7 {[%clk 0:00:33.8]}
31. Qa4 {[%clk 0:01:04.7]} 31... Ne7 {[%clk 0:00:23.5]} 32. Qxa6 {[%clk
0:00:56.1]} 32... g5 {[%clk 0:00:22.8]} 33. Qxe6+ {[%clk 0:00:55.8]} 33... Qf7
{[%clk 0:00:22.1]} 34. Qxf7+ {[%clk 0:00:55.6]} 34... Kxf7 {[%clk 0:00:22]} 35.
Nf3 {[%clk 0:00:55.3]} 35... h6 {[%clk 0:00:21]} 36. a4 {[%clk 0:00:38.7]} 36...
Ra8 {[%clk 0:00:20.7]} 37. a5 {[%clk 0:00:38.7]} 37... Nc6 {[%clk 0:00:16.8]}
38. Rb7+ {[%clk 0:00:35.3]} 38... Kf8 {[%clk 0:00:13.1]} 39. Rb5 {[%clk
0:00:32.9]} 39... Ke7 {[%clk 0:00:12.4]} 40. Rxc5 {[%clk 0:00:32.8]} 40... Kd6
{[%clk 0:00:10.4]} 41. Rd5+ {[%clk 0:00:33.1]} 41... Ke6 {[%clk 0:00:10.1]} 42.
Bd2 {[%clk 0:00:28]} 42... Bf8 {[%clk 0:00:07.7]} 43. Rb5 {[%clk 0:00:27.5]}
43... Bd6 {[%clk 0:00:05]} 44. Rb6 {[%clk 0:00:19.8]} 44... Kd7 {[%clk
0:00:03.7]} 45. Rb7+ {[%clk 0:00:16.4]} 45... Ke6 {[%clk 0:00:03.1]} 46. Rh7
{[%clk 0:00:12.8]} 1-0

[Event "Late-Titled-Tuesday-Blitz-June-25-2024"]
[Site "Chess.com"]
[Date "2024.06.25"]
[Round "1"]
[White "Good_Knight_Kiss"]
[Black "DucksParadise"]
[Result "1-0"]
[WhiteElo "2349"]
[BlackElo "2613"]
[TimeControl "180+1"]
[EndTime "14:07:42 PDT"]
[Termination "Good_Knight_Kiss won on time"]

1. e4 {[%clk 0:02:59.2]} 1... d5 {[%clk 0:02:56.9]} 2. exd5 {[%clk 0:02:58.7]}
2... Qxd5 {[%clk 0:02:48.8]} 3. Nc3 {[%clk 0:02:56.9]} 3... Qe5+ {[%clk
0:02:48.6]} 4. Be2 {[%clk 0:02:55.6]} 4... Bg4 {[%clk 0:02:47.2]} 5. d4 {[%clk
0:02:55.5]} 5... Bxe2 {[%clk 0:02:46.7]} 6. Ngxe2 {[%clk 0:02:55.2]} 6... Qa5
{[%clk 0:02:46.6]} 7. d5 {[%clk 0:02:47.9]} 7... c6 {[%clk 0:02:34.7]} 8. O-O
{[%clk 0:02:40]} 8... Nf6 {[%clk 0:02:28.8]} 9. Nf4 {[%clk 0:02:39.2]} 9... cxd5
{[%clk 0:02:19.9]} 10. Nfxd5 {[%clk 0:02:33.7]} 10... Nxd5 {[%clk 0:02:18.4]}
11. Qxd5 {[%clk 0:02:29.6]} 11... Qxd5 {[%clk 0:02:10.9]} 12. Nxd5 {[%clk
0:02:30.5]} 12... Na6 {[%clk 0:02:11.1]} 13. c4 {[%clk 0:02:11.6]} 13... e6
{[%clk 0:02:04]} 14. Re1 {[%clk 0:02:05.6]} 14... Bb4 {[%clk 0:01:51.3]} 15.
Nxb4 {[%clk 0:01:56.7]} 15... Nxb4 {[%clk 0:01:51.8]} 16. Re2 {[%clk 0:01:48.8]}
16... O-O-O {[%clk 0:01:47.1]} 17. Be3 {[%clk 0:01:45.5]} 17... a6 {[%clk
0:01:41.6]} 18. Bb6 {[%clk 0:01:37.5]} 18... Rd7 {[%clk 0:01:38.7]} 19. a3
{[%clk 0:01:30.2]} 19... Nc6 {[%clk 0:01:34.7]} 20. b4 {[%clk 0:01:24.9]} 20...
Nd4 {[%clk 0:01:24.7]} 21. Rb2 {[%clk 0:01:21]} 21... e5 {[%clk 0:01:15.7]} 22.
Re1 {[%clk 0:01:10.8]} 22... Re8 {[%clk 0:01:14.2]} 23. f4 {[%clk 0:00:59.5]}
23... e4 {[%clk 0:00:57.9]} 24. Kf2 {[%clk 0:00:51.6]} 24... Re6 {[%clk
0:00:34]} 25. Bxd4 {[%clk 0:00:46.2]} 25... Rxd4 {[%clk 0:00:30]} 26. c5 {[%clk
0:00:46.2]} 26... f5 {[%clk 0:00:26.2]} 27. g4 {[%clk 0:00:36]} 27... e3+ {[%clk
0:00:23.8]} 28. Kf3 {[%clk 0:00:31.2]} 28... fxg4+ {[%clk 0:00:18.8]} 29. Kxg4
{[%clk 0:00:32.1]} 29... Ree4 {[%clk 0:00:17.5]} 30. Kg5 {[%clk 0:00:23.3]}
30... Rxf4 {[%clk 0:00:11.6]} 31. Rxe3 {[%clk 0:00:22.1]} 31... Rf6 {[%clk
0:00:08.1]} 32. Re5 {[%clk 0:00:14]} 32... h6+ {[%clk 0:00:05.9]} 33. Kh5 {[%clk
0:00:14]} 33... Rdf4 {[%clk 0:00:06]} 34. Rg2 {[%clk 0:00:11.9]} 34... R4f5+
{[%clk 0:00:05.4]} 35. Rxf5 {[%clk 0:00:12.2]} 35... Rxf5+ {[%clk 0:00:05.8]}
36. Kg6 {[%clk 0:00:12.6]} 36... Rf3 {[%clk 0:00:05.7]} 37. Rg3 {[%clk
0:00:12.6]} 37... Rf2 {[%clk 0:00:04.6]} 38. h3 {[%clk 0:00:13.1]} 38... h5
{[%clk 0:00:02.9]} 39. Kxh5 {[%clk 0:00:11.2]} 39... Rf7 {[%clk 0:00:02.4]} 40.
Kg6 {[%clk 0:00:11.2]} 1-0

[Event "Late-Titled-Tuesday-Blitz-June-25-2024"]
[Site "Chess.com"]
[Date "2024.06.25"]
[Round "1"]
[White "nindjaxx8"]
[Black "LoonsDeKoeben"]
[Result "1-0"]
[WhiteElo "2731"]
[BlackElo "2432"]
[TimeControl "180+1"]
[EndTime "14:07:43 PDT"]
[Termination "nindjaxx8 won by checkmate"]

1. d4 {[%clk 0:02:53.4]} 1... Nf6 {[%clk 0:02:57.1]} 2. c4 {[%clk 0:02:50.6]}
2... c5 {[%clk 0:02:55.4]} 3. e3 {[%clk 0:02:49.2]} 3... cxd4 {[%clk 0:02:52.5]}
4. exd4 {[%clk 0:02:50.1]} 4... d5 {[%clk 0:02:53]} 5. Nc3 {[%clk 0:02:50.3]}
5... Nc6 {[%clk 0:02:48.4]} 6. Nf3 {[%clk 0:02:43.8]} 6... Bg4 {[%clk
0:02:22.3]} 7. Be3 {[%clk 0:02:42.6]} 7... e6 {[%clk 0:02:21.2]} 8. Be2 {[%clk
0:02:40.1]} 8... Be7 {[%clk 0:02:15.8]} 9. O-O {[%clk 0:02:39.5]} 9... O-O
{[%clk 0:02:12.3]} 10. Rc1 {[%clk 0:02:39.3]} 10... dxc4 {[%clk 0:02:07.6]} 11.
h3 {[%clk 0:02:38.3]} 11... Bh5 {[%clk 0:02:07]} 12. Bxc4 {[%clk 0:02:26.5]}
12... Nb4 {[%clk 0:02:07.1]} 13. Qe2 {[%clk 0:02:20.6]} 13... a6 {[%clk
0:01:52.8]} 14. Rfd1 {[%clk 0:02:08]} 14... b5 {[%clk 0:01:52.4]} 15. Bb3 {[%clk
0:02:07.3]} 15... Nbd5 {[%clk 0:01:34.4]} 16. Bg5 {[%clk 0:01:59.9]} 16... h6
{[%clk 0:01:09.6]} 17. Bh4 {[%clk 0:01:52.3]} 17... Nf4 {[%clk 0:00:51.2]} 18.
Qe3 {[%clk 0:01:23.7]} 18... N4d5 {[%clk 0:00:32.6]} 19. Nxd5 {[%clk 0:00:57.8]}
19... exd5 {[%clk 0:00:32.9]} 20. Re1 {[%clk 0:00:53]} 20... Re8 {[%clk
0:00:28.6]} 21. Ne5 {[%clk 0:00:53.1]} 21... Qd6 {[%clk 0:00:16.8]} 22. Rc6
{[%clk 0:00:49.9]} 22... Qb4 {[%clk 0:00:16.3]} 23. Rec1 {[%clk 0:00:29.4]}
23... Ng4 {[%clk 0:00:15.9]} 24. hxg4 {[%clk 0:00:25.3]} 24... Bxh4 {[%clk
0:00:15.2]} 25. gxh5 {[%clk 0:00:25.8]} 25... Qe7 {[%clk 0:00:02.7]} 26. Bxd5
{[%clk 0:00:25.2]} 26... Rad8 {[%clk 0:00:02.6]} 27. Bxf7+ {[%clk 0:00:22.4]}
27... Qxf7 {[%clk 0:00:03.2]} 28. Nxf7 {[%clk 0:00:22.7]} 28... Rxe3 {[%clk
0:00:04.1]} 29. Nxd8 {[%clk 0:00:22.8]} 29... Rd3 {[%clk 0:00:04]} 30. Ne6
{[%clk 0:00:22.5]} 30... Rd2 {[%clk 0:00:03.5]} 31. g3 {[%clk 0:00:22.6]} 31...
Bf6 {[%clk 0:00:03.3]} 32. Rc8+ {[%clk 0:00:22.9]} 32... Kf7 {[%clk 0:00:02.6]}
33. Nf4 {[%clk 0:00:21.5]} 33... Rxb2 {[%clk 0:00:02.9]} 34. R1c2 {[%clk
0:00:21.5]} 34... Rxc2 {[%clk 0:00:02.5]} 35. Rxc2 {[%clk 0:00:21]} 35... Bxd4
{[%clk 0:00:03.4]} 36. Rc6 {[%clk 0:00:20.8]} 36... a5 {[%clk 0:00:03.2]} 37.
Ra6 {[%clk 0:00:21]} 37... a4 {[%clk 0:00:03.5]} 38. Ra5 {[%clk 0:00:21.6]}
38... b4 {[%clk 0:00:04]} 39. Rxa4 {[%clk 0:00:20.2]} 39... Bc5 {[%clk
0:00:04.4]} 40. Nd3 {[%clk 0:00:20.6]} 40... Bd6 {[%clk 0:00:04.9]} 41. Nxb4
{[%clk 0:00:21.3]} 41... Kf6 {[%clk 0:00:04.6]} 42. Nd3 {[%clk 0:00:21.9]} 42...
Kg5 {[%clk 0:00:04.7]} 43. Kg2 {[%clk 0:00:22.8]} 43... Kxh5 {[%clk 0:00:04.5]}
44. Kf3 {[%clk 0:00:23.7]} 44... Kg5 {[%clk 0:00:05]} 45. Rc4 {[%clk 0:00:24.6]}
45... h5 {[%clk 0:00:05.3]} 46. a4 {[%clk 0:00:25.5]} 46... Bb8 {[%clk
0:00:04.4]} 47. a5 {[%clk 0:00:26]} 47... h4 {[%clk 0:00:05]} 48. a6 {[%clk
0:00:26.7]} 48... h3 {[%clk 0:00:04.5]} 49. Rh4 {[%clk 0:00:27.4]} 49... h2
{[%clk 0:00:03]} 50. Rxh2 {[%clk 0:00:27.7]} 50... Ba7 {[%clk 0:00:03.6]} 51.
Rh7 {[%clk 0:00:27.6]} 51... g6 {[%clk 0:00:04.5]} 52. Rxa7 {[%clk 0:00:27.6]}
52... Kf5 {[%clk 0:00:05.4]} 53. Re7 {[%clk 0:00:27.4]} 53... Kg5 {[%clk
0:00:06.3]} 54. a7 {[%clk 0:00:27.4]} 54... Kh5 {[%clk 0:00:07.2]} 55. a8=Q
{[%clk 0:00:27.5]} 55... Kg5 {[%clk 0:00:07.1]} 56. Qh8 {[%clk 0:00:26.7]} 56...
Kf5 {[%clk 0:00:07.2]} 57. Re5# {[%clk 0:00:26.5]} 1-0

[Event "Late-Titled-Tuesday-Blitz-June-25-2024"]
[Site "Chess.com"]
[Date "2024.06.25"]
[Round "1"]
[White "OppieZippy"]
[Black "crazy_machine"]
[Result "1/2-1/2"]
[WhiteElo "2355"]
[BlackElo "2628"]
[TimeControl "180+1"]
[EndTime "14:07:43 PDT"]
[Termination "Game drawn by repetition"]

1. d4 {[%clk 0:03:00.1]} 1... d5 {[%clk 0:02:59.3]} 2. Nf3 {[%clk 0:03:00]} 2...
Nf6 {[%clk 0:02:59.1]} 3. c4 {[%clk 0:02:57.7]} 3... e6 {[%clk 0:02:55]} 4. h3
{[%clk 0:02:58.1]} 4... dxc4 {[%clk 0:02:50.7]} 5. e3 {[%clk 0:02:56.1]} 5... a6
{[%clk 0:02:50.4]} 6. a4 {[%clk 0:02:52.4]} 6... c5 {[%clk 0:02:50.2]} 7. Bxc4
{[%clk 0:02:46.8]} 7... cxd4 {[%clk 0:02:50.5]} 8. Nxd4 {[%clk 0:02:46.6]} 8...
Bd6 {[%clk 0:02:47.7]} 9. O-O {[%clk 0:02:44.5]} 9... O-O {[%clk 0:02:44.5]} 10.
b3 {[%clk 0:02:44.9]} 10... Qe7 {[%clk 0:02:43.4]} 11. Bb2 {[%clk 0:02:40.7]}
11... Rd8 {[%clk 0:02:43.7]} 12. Qe2 {[%clk 0:02:40.8]} 12... Nbd7 {[%clk
0:02:43.9]} 13. Nc3 {[%clk 0:02:34.8]} 13... Ne5 {[%clk 0:02:40.5]} 14. Rfd1
{[%clk 0:02:30.2]} 14... Nxc4 {[%clk 0:02:37.3]} 15. Qxc4 {[%clk 0:02:29.4]}
15... Bd7 {[%clk 0:02:37.9]} 16. Qd3 {[%clk 0:02:17.7]} 16... Rac8 {[%clk
0:02:36.2]} 17. Nf5 {[%clk 0:02:10.3]} 17... exf5 {[%clk 0:02:33]} 18. Qxd6
{[%clk 0:02:10.8]} 18... Qxd6 {[%clk 0:02:33.9]} 19. Rxd6 {[%clk 0:02:11.7]}
19... Be6 {[%clk 0:02:34.8]} 20. Rb6 {[%clk 0:02:06.3]} 20... Rd2 {[%clk
0:02:26.5]} 21. Nd1 {[%clk 0:01:54.4]} 21... Rcd8 {[%clk 0:02:20.2]} 22. Bd4
{[%clk 0:01:35.9]} 22... Bd5 {[%clk 0:01:26.7]} 23. Nc3 {[%clk 0:01:31.6]} 23...
Bc6 {[%clk 0:01:26.6]} 24. b4 {[%clk 0:01:27.9]} 24... Nd7 {[%clk 0:00:23.9]}
25. b5 {[%clk 0:01:14.5]} 25... axb5 {[%clk 0:00:21.5]} 26. axb5 {[%clk
0:01:07.6]} 26... Nxb6 {[%clk 0:00:14.4]} 27. Bxb6 {[%clk 0:01:08.5]} 27... Rc8
{[%clk 0:00:15]} 28. bxc6 {[%clk 0:01:07.6]} 28... bxc6 {[%clk 0:00:15.9]} 29.
Bd4 {[%clk 0:00:55.8]} 29... c5 {[%clk 0:00:11.6]} 30. Bxc5 {[%clk 0:00:55.6]}
30... h6 {[%clk 0:00:07.2]} 31. Bd4 {[%clk 0:00:52.1]} 31... Rxd4 {[%clk
0:00:06.4]} 32. exd4 {[%clk 0:00:53]} 32... Rxc3 {[%clk 0:00:06.9]} 33. Ra5
{[%clk 0:00:51.6]} 33... g6 {[%clk 0:00:06.1]} 34. Rd5 {[%clk 0:00:45.1]} 34...
Kf8 {[%clk 0:00:06.1]} 35. g3 {[%clk 0:00:45.2]} 35... Ke7 {[%clk 0:00:06.2]}
36. Kg2 {[%clk 0:00:43.9]} 36... Ke6 {[%clk 0:00:05.7]} 37. Re5+ {[%clk
0:00:44.4]} 37... Kd6 {[%clk 0:00:04]} 38. Ra5 {[%clk 0:00:45.1]} 38... Rd3
{[%clk 0:00:03.9]} 39. Ra4 {[%clk 0:00:41.4]} 39... h5 {[%clk 0:00:04.2]} 40. h4
{[%clk 0:00:41.3]} 40... Ke6 {[%clk 0:00:04]} 41. Kf1 {[%clk 0:00:40.4]} 41...
Rd2 {[%clk 0:00:03.5]} 42. Ke1 {[%clk 0:00:40.2]} 42... Rb2 {[%clk 0:00:03.8]}
43. Kf1 {[%clk 0:00:40.3]} 43... Rb7 {[%clk 0:00:02.9]} 44. Kg2 {[%clk
0:00:40.1]} 44... Kd5 {[%clk 0:00:03.8]} 45. Kf3 {[%clk 0:00:39.9]} 45... Re7
{[%clk 0:00:03.8]} 46. Rb4 {[%clk 0:00:35.3]} 46... Rd7 {[%clk 0:00:02.2]} 47.
Kf4 {[%clk 0:00:33.3]} 47... Rc7 {[%clk 0:00:01.8]} 48. Ke3 {[%clk 0:00:29.4]}
48... Rc3+ {[%clk 0:00:01.3]} 49. Kf4 {[%clk 0:00:29.8]} 49... Rc7 {[%clk
0:00:02.2]} 50. Ke3 {[%clk 0:00:29.7]} 50... Re7+ {[%clk 0:00:02.9]} 51. Kf3
{[%clk 0:00:29.6]} 51... Ra7 {[%clk 0:00:03.8]} 52. Kf4 {[%clk 0:00:28.9]} 52...
Rc7 {[%clk 0:00:04.5]} 1/2-1/2